[Event "GER-ch Youth-U10 2022"]
[Site "Willingen"]
[Date "2022.06.05"]
[Round "1.14"]
[White "Classen, Marnin"]
[Black "Zimmer, Tim"]
[Result "0-1"]
[ECO "C78"]
[WhiteElo "1168"]
[BlackElo "1164"]
[Annotator "NA RC COMBH"]
[PlyCount "86"]
[EventDate "2022.06.05"]
[EventType "swiss"]
[EventRounds "11"]
[EventCountry "GER"]
[SourceTitle "playchess.com"]
[Source "ChessBase"]
[SourceQuality "1"]
[TimeControl "40/4500+30:900+30"]

1. e4 {[%emt 0:00:05]} e5 {[%emt 0:00:05]} 2. Nf3 {[%emt 0:00:11]} Nc6 {[%emt 0:00:05]} 3. Bb5 {[%emt 0:00:14]} a6 {[%emt 0:00:20]} 4. Ba4 {[%emt 0:00:08]} Bc5 {[%emt 0:00:20]} 5. O-O {[%emt 0:00:24]} b5 {[%emt 0:00:32]} 6. Bb3 {[%emt 0:00:14]} Nf6 {[%emt 0:00:15]} 7. Nxe5 {[%emt 0:00:35]} Nxe5 {[%emt 0:00:41]} 8. d4 {[%emt 0:00:15]} O-O {[%emt 0:03:22]} 9. Re1 {[%emt 0:00:40]} Bb7 {[%emt 0:00:38]} 10. Nc3 {[%emt 0:00:56]} Bb4 {[%emt 0:00:38]} 11. dxe5 {[%emt 0:00:51]} Bxc3 {[%emt 0:00:58]} 12. bxc3 {[%emt 0:02:02]} Nxe4 {[%emt 0:00:00]} 13. Qf3 {[%emt 0:02:25]} d5 {[%emt 0:02:21]} 14. exd6 {[%emt 0:01:07]} Qxd6 {[%emt 0:00:27]} 15. Rxe4 {[%emt 0:04:10]} Bxe4 {[%emt 0:00:17]} 16. Qe2 {[%emt 0:00:43]} Rfe8 {[%emt 0:00:39]} 17. Be3 {[%emt 0:00:30]} Rad8 {[%emt 0:00:25]} 18. h3 {[%emt 0:00:40]} Qg6 {[%emt 0:00:37]} 19. f3 {[%emt 0:00:24]} Bf5 {[%emt 0:00:44]} 20. Qf2 {[%emt 0:00:24]} Bxh3 {[%emt 0:00:11]} 21. Bf4 {[%emt 0:01:04]} Rd7 {[%emt 0:00:56]} 22. Bg3 {[%emt 0:00:49]} Bf5 {[%emt 0:01:15]} 23. Re1 {[%emt 0:00:35]} Red8 {[%emt 0:01:01]} 24. Qe2 {[%emt 0:02:25]} h6 {[%emt 0:00:12]} 25. Bf4 {[%emt 0:00:32]} c5 {[%emt 0:01:36]} 26. c4 {[%emt 0:01:03]} Bh3 {[%emt 0:01:17]} 27. Kh2 {[%emt 0:01:01]} Re7 {[%emt 0:00:58]} 28. Qf2 {[%emt 0:01:23]} Rxe1 {[%emt 0:00:03]} 29. gxh3 {[%emt 0:00:21]} Rdd1 {[%emt 0:00:08]} 30. Bg3 {[%emt 0:00:59]} Rh1+ {[%emt 0:00:08]} 31. Kg2 {[%emt 0:00:10]} Rdg1+ {[%emt 0:00:10]} 32. Qxg1 {[%emt 0:00:14]} Rxg1+ {[%emt 0:00:03]} 33. Kxg1 {[%emt 0:00:10]} Qxg3+ {[%emt 0:00:05]} 34. Kf1 {[%emt 0:00:12]} b4 {[%emt 0:00:11]} 35. Ke2 {[%emt 0:00:34]} Kf8 {[%emt 0:00:07]} 36. Kd3 {[%emt 0:00:14]} Qxf3+ {[%emt 0:00:09]} 37. Kd2 {[%emt 0:00:11]} Ke7 {[%emt 0:00:03]} 38. Ba4 {[%emt 0:00:17]} Kd6 {[%emt 0:00:07]} 39. Be8 {[%emt 0:00:14]} Ke5 {[%emt 0:00:06]} 40. Bd7 {[%emt 0:00:16]} Kd4 {[%emt 0:00:06]} 41. Bg4 {[%emt 0:15:40]} Qe3+ {[%emt 0:15:10]} 42. Kd1 {[%emt 0:00:09]} Kc3 {[%emt 0:00:02]} 43. Be2 {[%emt 0:00:18]} Qd2# {[%emt 0:05:30]} 0-1

[Event "GER-ch Youth-U10 2022"]
[Site "Willingen"]
[Date "2022.06.05"]
[Round "1.15"]
[White "Rau, Eduard"]
[Black "Zhao, Yunsheng"]
[Result "1-0"]
[ECO "C77"]
[WhiteElo "1406"]
[BlackElo "1144"]
[Annotator "NA RC COMBH"]
[PlyCount "61"]
[EventDate "2022.06.05"]
[EventType "swiss"]
[EventRounds "11"]
[EventCountry "GER"]
[SourceTitle "playchess.com"]
[Source "ChessBase"]
[SourceQuality "1"]
[TimeControl "40/4500+30:900+30"]

1. e4 {[%emt 0:00:05]} e5 {[%emt 0:00:02]} 2. Nf3 {[%emt 0:00:05]} Nc6 {[%emt 0:00:06]} 3. Bb5 {[%emt 0:00:02]} a6 {[%emt 0:00:06]} 4. Ba4 {[%emt 0:00:04]} Nf6 {[%emt 0:00:07]} 5. d3 {[%emt 0:00:12]} b5 {[%emt 0:00:15]} 6. Bb3 {[%emt 0:00:06]} Bc5 {[%emt 0:00:11]} 7. O-O {[%emt 0:00:07]} O-O {[%emt 0:00:16]} 8. c3 {[%emt 0:00:05]} d5 {[%emt 0:00:49]} 9. exd5 {[%emt 0:03:06]} Nxd5 {[%emt 0:00:27]} 10. Bg5 {[%emt 0:00:21]} Qd6 {[%emt 0:04:16]} 11. Nbd2 {[%emt 0:00:29]} h6 {[%emt 0:00:38]} 12. Ne4 {[%emt 0:00:25]} Qg6 {[%emt 0:03:03]} 13. Bxd5 {[%emt 0:00:50]} hxg5 {[%emt 0:02:47]} 14. Nxc5 {[%emt 0:00:59]} Qd6 {[%emt 0:01:03]} 15. Bxc6 {[%emt 0:00:11]} Qxc6 {[%emt 0:00:11]} 16. Ne4 {[%emt 0:00:04]} g4 {[%emt 0:00:22]} 17. Nxe5 {[%emt 0:00:11]} Qe6 {[%emt 0:00:53]} 18. d4 {[%emt 0:00:08]} Re8 {[%emt 0:02:29]} 19. Re1 {[%emt 0:00:42]} f6 {[%emt 0:02:19]} 20. Nxg4 {[%emt 0:00:48]} Kf7 {[%emt 0:04:45]} 21. Ng5+ {[%emt 0:00:28]} fxg5 {[%emt 0:01:08]} 22. Rxe6 {[%emt 0:00:04]} Bxe6 {[%emt 0:00:10]} 23. Ne5+ {[%emt 0:00:15]} Kg8 {[%emt 0:01:13]} 24. Qh5 {[%emt 0:00:21]} Rad8 {[%emt 0:00:53]} 25. Qxg5 {[%emt 0:00:20]} Bf7 {[%emt 0:03:02]} 26. f4 {[%emt 0:00:27]} Rd6 {[%emt 0:00:49]} 27. f5 {[%emt 0:01:09]} Rf6 {[%emt 0:00:53]} 28. g4 {[%emt 0:00:29]} Bd5 {[%emt 0:02:02]} 29. b3 {[%emt 0:00:25]} c5 {[%emt 0:01:16]} 30. Qf4 {[%emt 0:00:55]} cxd4 {[%emt 0:02:08]} 31. Rd1 {[%emt 0:00:07]} 1-0

[Event "GER-ch Youth-U10 2022"]
[Site "Willingen"]
[Date "2022.06.05"]
[Round "1.17"]
[White "Chua, Daniel James"]
[Black "Leonhardt, Max"]
[Result "1-0"]
[ECO "C30"]
[WhiteElo "1314"]
[BlackElo "1114"]
[Annotator "NA RC COMBH"]
[PlyCount "61"]
[EventDate "2022.06.05"]
[EventType "swiss"]
[EventRounds "11"]
[EventCountry "GER"]
[SourceTitle "playchess.com"]
[Source "ChessBase"]
[SourceQuality "1"]
[TimeControl "40/4500+30:900+30"]

1. e4 {[%emt 0:00:03]} e5 {[%emt 0:00:09]} 2. f4 {[%emt 0:00:11]} d6 {[%emt 0:00:35]} 3. Nf3 {[%emt 0:00:14]} Nc6 {[%emt 0:00:07]} 4. Bb5 {[%emt 0:00:05]} f6 {[%emt 0:00:33]} 5. fxe5 {[%emt 0:00:20]} fxe5 {[%emt 0:00:12]} 6. O-O {[%emt 0:01:07]} Bg4 {[%emt 0:00:09]} 7. h3 {[%emt 0:00:34]} Bh5 {[%emt 0:00:07]} 8. Nc3 {[%emt 0:00:32]} Nge7 {[%emt 0:00:17]} 9. Bc4 {[%emt 0:01:06]} Nd4 {[%emt 0:00:23]} 10. Nxe5 {[%emt 0:00:13]} dxe5 {[%emt 0:01:56]} 11. Qxh5+ {[%emt 0:00:07]} g6 {[%emt 0:00:49]} 12. Qxe5 {[%emt 0:00:17]} Qd6 {[%emt 0:02:03]} 13. Qxh8 {[%emt 0:00:12]} Qc5 {[%emt 0:02:14]} 14. Kh1 {[%emt 0:01:23]} Nef5 {[%emt 0:05:28]} 15. exf5 {[%emt 0:00:25]} Nxf5 {[%emt 0:00:08]} 16. Re1+ {[%emt 0:00:27]} Kd8 {[%emt 0:00:50]} 17. Qe5 {[%emt 0:01:35]} Qxe5 {[%emt 0:00:48]} 18. Rxe5 {[%emt 0:00:03]} Bd6 {[%emt 0:00:17]} 19. Re1 {[%emt 0:00:27]} Ng3+ {[%emt 0:00:20]} 20. Kg1 {[%emt 0:00:39]} Bc5+ {[%emt 0:00:11]} 21. d4 {[%emt 0:00:15]} Bxd4+ {[%emt 0:00:47]} 22. Be3 {[%emt 0:00:02]} Bxc3 {[%emt 0:00:56]} 23. Rad1+ {[%emt 0:00:16]} Ke7 {[%emt 0:00:23]} 24. bxc3 {[%emt 0:00:30]} Kf6 {[%emt 0:00:19]} 25. Bd4+ {[%emt 0:00:06]} Kg5 {[%emt 0:00:34]} 26. Rd3 {[%emt 0:00:22]} Nf5 {[%emt 0:00:18]} 27. g4 {[%emt 0:00:32]} Nxd4 {[%emt 0:00:39]} 28. Rxd4 {[%emt 0:00:04]} c5 {[%emt 0:00:17]} 29. Rd5+ {[%emt 0:00:13]} Kh6 {[%emt 0:00:10]} 30. g5+ {[%emt 0:00:10]} Kh5 {[%emt 0:00:25]} 31. Re4 {[%emt 0:08:28]} 1-0

[Event "GER-ch Youth-U10 2022"]
[Site "Willingen"]
[Date "2022.06.05"]
[Round "1.18"]
[White "Antonius, Richard-Malte"]
[Black "Campora, Daniel H."]
[Result "0-1"]
[ECO "D02"]
[WhiteElo "1106"]
[BlackElo "2397"]
[Annotator "TA"]
[PlyCount "62"]
[EventDate "2022.06.05"]
[EventType "swiss"]
[EventRounds "11"]
[EventCountry "GER"]
[SourceTitle "playchess.com"]
[Source "ChessBase"]
[SourceQuality "1"]
[TimeControl "40/4500+30:900+30"]

{[%evp 9,62,-13,-12,-10,8,-11,2,-10,-9,-12,-7,-31,-27,-27,-25,-35,0,0,-2,-17,-18,-16,-15,-16,29,29,29,-33,-30,-16,-24,-34,-34,-52,-39,-47,-40,-118,-119,-91,-94,-79,0,0,0,-365,-354,-579,-587,-2782,-2760,-12830,-5793,-2519,-2178]} 1. d4 {[%emt 0:00:02]} d5 {[%emt 0:00:08]} 2. c3 {[%emt 0:00:04]} c5 {[%emt 0:00:26]} 3. Nf3 {[%emt 0:00:09]} Nc6 {[%emt 0:00:41]} 4. Qb3 {[%emt 0:00:36]} Nf6 {[%emt 0:01:42]} 5. Bf4 {[%emt 0:00:10]} c4 {[%emt 0:01:06]} 6. Qc2 {[%emt 0:00:08] [#] D02: 1 d4 d5 2 Nf3 sidelines, including 2...Nf6 3 g3 and 2...Nf6 3 Bf4.} Bg4 $146 {[%emt 0:01:28][%cal Bc8g4,Bg4h5,Bh5g6][%mdl 32]} ({Predecessor:} 6... g6 7. Nbd2 Bg7 8. e4 Nxe4 9. Nxe4 Bf5 10. Nfd2 dxe4 11. Be3 e5 12. d5 Qxd5 13. Bxc4 {½-½ (49) Nathan,N (1864)-Dereshki,D (2067) Chess.com INT 2022}) 7. Nbd2 {[%emt 0:00:26]} Bh5 {[%emt 0:00:53]} 8. e3 {[%emt 0:00:17] The position is equal.} e6 {[%emt 0:00:52]} 9. Be2 {[%emt 0:00:08]} Be7 {[%emt 0:01:53]} 10. a3 {[%emt 0:00:26]} O-O {[%emt 0:00:58]} 11. O-O {[%emt 0:00:07]} Bg6 {[%emt 0:00:49]} 12. Qc1 {[%emt 0:01:27]} Bd6 {[%emt 0:01:34]} 13. Bxd6 {[%emt 0:01:47]} Qxd6 {[%emt 0:00:08]} 14. h3 {[%emt 0:04:07]} b5 {[%emt 0:00:39]} 15. Re1 {[%emt 0:00:34]} a5 {[%emt 0:02:21][%cal Ba7a5,Ba5b4,Bb4b3][%mdl 32]} 16. Nh4 {[%emt 0:00:55]} Rfb8 {[%emt 0:06:18]} 17. Nxg6 {[%emt 0:00:14]} hxg6 {[%emt 0:00:41]} 18. Nf3 {[%emt 0:00:11]} (18. a4 $11) 18... b4 $15 {[%emt 0:01:17]} 19. axb4 {[%emt 0:00:19]} axb4 {[%emt 0:00:22]} 20. Qc2 {[%emt 0:01:25]} b3 {[%emt 0:00:33]} 21. Qd2 {[%emt 0:00:17]} Ne4 $1 {[%emt 0:00:51] Against Ng5} 22. Qc1 {[%emt 0:00:28]} Qd8 {[%emt 0:02:40]} 23. Qb1 {[%emt 0:00:19]} ({White should try} 23. Rb1 $15) 23... Rxa1 {[%emt 0:00:40]} 24. Qxa1 {[%emt 0:00:31]} Ra8 {[%emt 0:00:04]} 25. Qb1 {[%emt 0:00:08][%cal Oe2c4]} Ra2 {[%emt 0:01:44] Black is much more active.} (25... Ra4 $17) 26. Bxc4 $1 $11 {[%emt 0:01:41]} Nxc3 $1 {[%emt 0:00:59]} 27. bxc3 {[%emt 0:02:09][%mdl 8192] [#]} (27. Qd3 $11 {and White stays safe.} Qa5 28. bxc3 dxc4 29. Qxc4) 27... dxc4 $19 {[%emt 0:00:00]} 28. Rd1 $2 {[%emt 0:02:55]} (28. h4) 28... Qa5 {[%emt 0:00:23] Black is clearly winning.} 29. Rd2 {[%emt 0:01:04]} Ra1 {[%emt 0:00:10]} 30. Qxa1 {[%emt 0:00:14]} Qxa1+ {[%emt 0:00:06]} 31. Kh2 {[%emt 0:00:11]} b2 {[%emt 0:00:23] Weighted Error Value: White=0.98/Black=0.09 (flawless)} 0-1

[Event "GER-ch Youth-U10 2022"]
[Site "Willingen"]
[Date "2022.06.05"]
[Round "1.19"]
[White "Allen, Phillipp"]
[Black "Yao, Haiyang"]
[Result "1-0"]
[ECO "C41"]
[WhiteElo "1467"]
[BlackElo "1098"]
[Annotator "NA RC COMBH"]
[PlyCount "95"]
[EventDate "2022.06.05"]
[EventType "swiss"]
[EventRounds "11"]
[EventCountry "GER"]
[SourceTitle "playchess.com"]
[Source "ChessBase"]
[SourceQuality "1"]
[TimeControl "40/4500+30:900+30"]

1. e4 {[%emt 0:00:02]} e5 {[%emt 0:00:03]} 2. Nf3 {[%emt 0:00:09]} d6 {[%emt 0:00:05]} 3. d4 {[%emt 0:01:14]} Nd7 {[%emt 0:00:38]} 4. dxe5 {[%emt 0:00:47]} dxe5 {[%emt 0:00:14]} 5. Be3 {[%emt 0:00:53]} c6 {[%emt 0:00:26]} 6. Bc4 {[%emt 0:02:09]} Be7 {[%emt 0:00:27]} 7. O-O {[%emt 0:01:23]} h6 {[%emt 0:00:04]} 8. c3 {[%emt 0:00:49]} Ngf6 {[%emt 0:00:11]} 9. Nbd2 {[%emt 0:01:27]} O-O {[%emt 0:00:24]} 10. h3 {[%emt 0:01:41]} b5 {[%emt 0:00:06]} 11. Bb3 {[%emt 0:00:41]} Bb7 {[%emt 0:00:23]} 12. a4 {[%emt 0:01:43]} Qc8 {[%emt 0:00:58]} 13. axb5 {[%emt 0:01:16]} cxb5 {[%emt 0:00:11]} 14. Bc2 {[%emt 0:01:09]} Ba6 {[%emt 0:00:08]} 15. Bd3 {[%emt 0:01:48]} Ne8 {[%emt 0:02:05]} 16. Qb3 {[%emt 0:03:57]} Nd6 {[%emt 0:08:22]} 17. Rfd1 {[%emt 0:08:56]} Nf6 {[%emt 0:00:00]} 18. Nxe5 {[%emt 0:02:49]} Bb7 {[%emt 0:00:00]} 19. Ng6 {[%emt 0:00:59]} Re8 {[%emt 0:00:00]} 20. Nxe7+ {[%emt 0:03:04]} Rxe7 {[%emt 0:00:00]} 21. Qa3 {[%emt 0:03:24]} Re6 {[%emt 0:00:00]} 22. e5 {[%emt 0:00:55]} Rxe5 {[%emt 0:00:00]} 23. Bf4 {[%emt 0:00:50]} Qc6 {[%emt 0:00:00]} 24. Nf3 {[%emt 0:02:20]} Rd5 {[%emt 0:00:36]} 25. Bf1 {[%emt 0:04:38]} Rxd1 {[%emt 0:00:34]} 26. Rxd1 {[%emt 0:00:16]} Nc4 {[%emt 0:00:44]} 27. Bxc4 {[%emt 0:05:38]} Qxc4 {[%emt 0:00:18]} 28. Nd4 {[%emt 0:04:32]} Qd5 {[%emt 0:01:23]} 29. f3 {[%emt 0:01:10]} Nh5 {[%emt 0:00:34]} 30. Bh2 {[%emt 0:03:23]} Qg5 {[%emt 0:01:51]} 31. Qa5 {[%emt 0:04:15]} Rd8 {[%emt 0:00:42]} 32. Rf1 {[%emt 0:02:38]} Qe3+ {[%emt 0:02:33]} 33. Kh1 {[%emt 0:00:43]} Re8 {[%emt 0:00:47]} 34. Qxb5 {[%emt 0:01:49]} Bc8 {[%emt 0:03:15]} 35. Qxh5 {[%emt 0:02:40]} Ba6 {[%emt 0:01:51]} 36. Rg1 {[%emt 0:02:50]} Qf2 {[%emt 0:01:02]} 37. Qg4 {[%emt 0:01:29]} Re1 {[%emt 0:01:37]} 38. Rxe1 {[%emt 0:00:27]} Qxe1+ {[%emt 0:00:13]} 39. Bg1 {[%emt 0:00:05]} Bf1 {[%emt 0:01:05]} 40. Nf5 {[%emt 0:01:22]} g6 {[%emt 0:01:15]} 41. Nxh6+ {[%emt 0:15:35]} Kg7 {[%emt 0:15:30]} 42. Nf5+ {[%emt 0:01:45]} Kg8 {[%emt 0:01:19]} 43. Qg3 {[%emt 0:01:58]} Qb1 {[%emt 0:01:00]} 44. Qb8+ {[%emt 0:01:05]} Kh7 {[%emt 0:00:14]} 45. Qf8 {[%emt 0:00:47]} Qxf5 {[%emt 0:00:26]} 46. Bd4 {[%emt 0:01:03]} f6 {[%emt 0:01:34]} 47. Bxf6 {[%emt 0:01:28]} Qd7 {[%emt 0:01:26]} 48. Qh8# {[%emt 0:00:07]} 1-0

[Event "GER-ch Youth-U10 2022"]
[Site "Willingen"]
[Date "2022.06.05"]
[Round "1.20"]
[White "Stehning, Toni"]
[Black "Tak, Rannveer"]
[Result "1-0"]
[ECO "C02"]
[WhiteElo "1097"]
[BlackElo "1746"]
[Annotator "NA RC COMBH"]
[PlyCount "47"]
[EventDate "2022.06.05"]
[EventType "swiss"]
[EventRounds "11"]
[EventCountry "GER"]
[SourceTitle "playchess.com"]
[Source "ChessBase"]
[SourceQuality "1"]
[TimeControl "40/4500+30:900+30"]

1. e4 {[%emt 0:00:03]} e6 {[%emt 0:00:07]} 2. d4 {[%emt 0:00:09]} d5 {[%emt 0:00:05]} 3. e5 {[%emt 0:00:08]} c5 {[%emt 0:00:07]} 4. c3 {[%emt 0:00:08]} Nc6 {[%emt 0:00:05]} 5. Nf3 {[%emt 0:00:05]} Bd7 {[%emt 0:00:08]} 6. Bd3 {[%emt 0:00:25]} cxd4 {[%emt 0:01:01]} 7. cxd4 {[%emt 0:00:33]} Qb6 {[%emt 0:00:16]} 8. Nc3 {[%emt 0:01:29]} Nxd4 {[%emt 0:00:28]} 9. Nxd4 {[%emt 0:00:05]} Qxd4 {[%emt 0:00:12]} 10. O-O {[%emt 0:00:09]} Bc5 {[%emt 0:01:02]} 11. Be3 {[%emt 0:00:36]} Qb4 {[%emt 0:00:36]} 12. a3 {[%emt 0:00:24]} Qb6 {[%emt 0:00:30]} 13. Na4 {[%emt 0:00:21]} Bxa4 {[%emt 0:02:09]} 14. Qxa4+ {[%emt 0:00:18]} Kf8 {[%emt 0:03:37]} 15. Bxc5+ {[%emt 0:01:25]} Qxc5 {[%emt 0:00:17]} 16. Rac1 {[%emt 0:00:31]} Qb6 {[%emt 0:05:03]} 17. Qd7 {[%emt 0:00:47]} Ne7 {[%emt 0:03:04]} 18. Rc7 {[%emt 0:00:22]} Re8 {[%emt 0:00:44]} 19. Bb5 {[%emt 0:00:06]} Qxb5 {[%emt 0:05:50]} 20. Qxb5 {[%emt 0:00:20]} b6 {[%emt 0:04:31]} 21. Rxa7 {[%emt 0:00:26]} Ng6 {[%emt 0:00:17]} 22. Qb4+ {[%emt 0:00:41]} Kg8 {[%emt 0:02:53]} 23. Qxb6 {[%emt 0:00:18]} Nxe5 {[%emt 0:00:18]} 24. Qc7 {[%emt 0:00:11]} 1-0

[Event "GER-ch Youth-U10 2022"]
[Site "Willingen"]
[Date "2022.06.05"]
[Round "1.21"]
[White "Vu, Khoi Nguyen"]
[Black "Schmidt, Jossip"]
[Result "1-0"]
[ECO "C50"]
[WhiteElo "1627"]
[BlackElo "1085"]
[Annotator "NA RC COMBH"]
[PlyCount "81"]
[EventDate "2022.06.05"]
[EventType "swiss"]
[EventRounds "11"]
[EventCountry "GER"]
[SourceTitle "playchess.com"]
[Source "ChessBase"]
[SourceQuality "1"]
[TimeControl "40/4500+30:900+30"]

1. e4 {[%emt 0:00:03]} e5 {[%emt 0:00:07]} 2. Nf3 {[%emt 0:00:05]} Nc6 {[%emt 0:00:23]} 3. Bc4 {[%emt 0:00:10]} Bc5 {[%emt 0:00:14]} 4. Nc3 {[%emt 0:00:08]} Nf6 {[%emt 0:00:13]} 5. d3 {[%emt 0:00:07]} h6 {[%emt 0:00:20]} 6. Be3 {[%emt 0:00:26]} Bxe3 {[%emt 0:00:24]} 7. fxe3 {[%emt 0:00:06]} d6 {[%emt 0:00:16]} 8. Qd2 {[%emt 0:00:42]} Qe7 {[%emt 0:00:21]} 9. O-O-O {[%emt 0:00:27]} Be6 {[%emt 0:00:54]} 10. Bb3 {[%emt 0:00:09]} O-O-O {[%emt 0:00:37]} 11. Nd5 {[%emt 0:00:32]} Bxd5 {[%emt 0:00:22]} 12. exd5 {[%emt 0:00:14]} Nb8 {[%emt 0:00:48]} 13. e4 {[%emt 0:00:42]} Nbd7 {[%emt 0:00:34]} 14. Qf2 {[%emt 0:00:35]} Kb8 {[%emt 0:00:35]} 15. Nd2 {[%emt 0:01:29]} Nc5 {[%emt 0:02:15]} 16. Nc4 {[%emt 0:01:09]} Nxb3+ {[%emt 0:03:01]} 17. axb3 {[%emt 0:00:08]} Nd7 {[%emt 0:03:00]} 18. Rhf1 {[%emt 0:00:18]} f6 {[%emt 0:00:12]} 19. Kb1 {[%emt 0:03:24]} Rhf8 {[%emt 0:02:58]} 20. Ka2 {[%emt 0:00:53]} Nb6 {[%emt 0:00:38]} 21. Ne3 {[%emt 0:00:15]} Qd7 {[%emt 0:00:31]} 22. Ra1 {[%emt 0:00:37]} a5 {[%emt 0:02:54]} 23. Kb1 {[%emt 0:00:43]} a4 {[%emt 0:01:50]} 24. b4 {[%emt 0:00:40]} Qb5 {[%emt 0:00:19]} 25. Qd2 {[%emt 0:00:03]} Rc8 {[%emt 0:01:09]} 26. c4 {[%emt 0:00:53]} Qa6 {[%emt 0:00:21]} 27. Nf5 {[%emt 0:00:23]} Rf7 {[%emt 0:01:03]} 28. Rf3 {[%emt 0:00:50]} c6 {[%emt 0:01:18]} 29. Nxd6 {[%emt 0:00:12]} Rcc7 {[%emt 0:00:30]} 30. c5 {[%emt 0:01:12]} Nc8 {[%emt 0:00:24]} 31. Nxf7 {[%emt 0:00:00]} Rxf7 {[%emt 0:00:24]} 32. d6 {[%emt 0:00:00]} Rd7 {[%emt 0:00:11]} 33. Qc2 {[%emt 0:00:55]} b5 {[%emt 0:00:36]} 34. cxb6 {[%emt 0:00:17]} Qxb6 {[%emt 0:00:22]} 35. Rxa4 {[%emt 0:00:51]} Rxd6 {[%emt 0:00:20]} 36. Qc5 {[%emt 0:00:28]} Qb7 {[%emt 0:00:56]} 37. Kc2 {[%emt 0:02:39]} Qe7 {[%emt 0:00:44]} 38. Rf1 {[%emt 0:00:39]} Na7 {[%emt 0:03:02]} 39. Rfa1 {[%emt 0:00:05]} Nb5 {[%emt 0:00:35]} 40. Ra8+ {[%emt 0:00:20]} Kc7 {[%emt 0:00:25]} 41. R1a7+ {[%emt 0:15:41]} 1-0

[Event "GER-ch Youth-U10 2022"]
[Site "Willingen"]
[Date "2022.06.05"]
[Round "1.22"]
[White "Wolf, Noah"]
[Black "Lee, Ho In"]
[Result "0-1"]
[ECO "C02"]
[WhiteElo "1073"]
[BlackElo "1396"]
[Annotator "NA RC COMBH"]
[PlyCount "64"]
[EventDate "2022.06.05"]
[EventType "swiss"]
[EventRounds "11"]
[EventCountry "GER"]
[SourceTitle "playchess.com"]
[Source "ChessBase"]
[SourceQuality "1"]
[TimeControl "40/4500+30:900+30"]

1. e4 {[%emt 0:00:02]} e6 {[%emt 0:00:11]} 2. d4 {[%emt 0:00:14]} d5 {[%emt 0:00:11]} 3. e5 {[%emt 0:00:11]} c5 {[%emt 0:00:27]} 4. c3 {[%emt 0:00:15]} Nc6 {[%emt 0:00:18]} 5. Nf3 {[%emt 0:00:15]} Qb6 {[%emt 0:00:17]} 6. Bd3 {[%emt 0:00:16]} cxd4 {[%emt 0:00:42]} 7. cxd4 {[%emt 0:00:06]} Bd7 {[%emt 0:00:27]} 8. Bc2 {[%emt 0:01:27]} Nb4 {[%emt 0:00:42]} 9. O-O {[%emt 0:00:55]} Nxc2 {[%emt 0:00:24]} 10. Qxc2 {[%emt 0:00:10]} Ne7 {[%emt 0:00:42]} 11. Bg5 {[%emt 0:03:26]} Nf5 {[%emt 0:02:19]} 12. Rd1 {[%emt 0:01:49]} Rc8 {[%emt 0:04:25]} 13. Nc3 {[%emt 0:03:27]} h6 {[%emt 0:01:42]} 14. Be3 {[%emt 0:01:28]} Qa5 {[%emt 0:12:19]} 15. Qb3 {[%emt 0:00:59]} Qb4 {[%emt 0:01:20]} 16. Qxb4 {[%emt 0:03:54]} Bxb4 {[%emt 0:00:11]} 17. Rac1 {[%emt 0:00:10]} O-O {[%emt 0:00:38]} 18. g4 {[%emt 0:00:52]} Ne7 {[%emt 0:02:55]} 19. h4 {[%emt 0:00:35]} Rc7 {[%emt 0:01:15]} 20. h5 {[%emt 0:00:58]} Rfc8 {[%emt 0:00:32]} 21. Bd2 {[%emt 0:00:44]} b5 {[%emt 0:02:55]} 22. g5 {[%emt 0:01:08]} Nf5 {[%emt 0:01:09]} 23. gxh6 {[%emt 0:01:02]} gxh6 {[%emt 0:01:54]} 24. Nxd5 {[%emt 0:00:58]} Rxc1 {[%emt 0:00:35]} 25. Nf6+ {[%emt 0:00:08]} Kg7 {[%emt 0:00:41]} 26. Bxc1 {[%emt 0:00:29]} Bc6 {[%emt 0:02:36]} 27. Nh2 {[%emt 0:03:56]} Bb7 {[%emt 0:02:02]} 28. Bd2 {[%emt 0:02:53]} Bxd2 {[%emt 0:02:07]} 29. Rxd2 {[%emt 0:01:49]} Rc1+ {[%emt 0:00:12]} 30. Nf1 {[%emt 0:00:14]} Nh4 {[%emt 0:00:24]} 31. Rd3 {[%emt 0:03:53]} Nf3+ {[%emt 0:00:36]} 32. Kg2 {[%emt 0:00:55]} Nxe5+ {[%emt 0:00:50]} 0-1

[Event "GER-ch Youth-U10 2022"]
[Site "Willingen"]
[Date "2022.06.05"]
[Round "1.23"]
[White "Fels, Mattis"]
[Black "Mulgunov, Jefim Nikolaj"]
[Result "1-0"]
[ECO "B07"]
[WhiteElo "1395"]
[BlackElo "1055"]
[Annotator "NA RC COMBH"]
[PlyCount "55"]
[EventDate "2022.06.05"]
[EventType "swiss"]
[EventRounds "11"]
[EventCountry "GER"]
[SourceTitle "playchess.com"]
[Source "ChessBase"]
[SourceQuality "1"]
[TimeControl "40/4500+30:900+30"]

1. d4 {[%emt 0:00:00]} g6 {[%emt 0:00:00]} 2. Nc3 {[%emt 0:00:18]} Bg7 {[%emt 0:00:00]} 3. Bf4 {[%emt 0:00:39]} Nf6 {[%emt 0:00:01]} 4. f3 {[%emt 0:01:08]} O-O {[%emt 0:00:36]} 5. Qd2 {[%emt 0:01:26]} d6 {[%emt 0:00:19]} 6. e4 {[%emt 0:02:12]} Nbd7 {[%emt 0:00:09]} 7. O-O-O {[%emt 0:01:32]} e5 {[%emt 0:02:25]} 8. dxe5 {[%emt 0:00:13]} dxe5 {[%emt 0:00:23]} 9. Bxe5 {[%emt 0:03:11]} Qe7 {[%emt 0:01:19]} 10. Bxc7 {[%emt 0:05:14]} Re8 {[%emt 0:04:27]} 11. Qd6 {[%emt 0:04:18]} Bh6+ {[%emt 0:01:03]} 12. Kb1 {[%emt 0:00:49]} Qxd6 {[%emt 0:01:43]} 13. Rxd6 {[%emt 0:00:15]} Kg7 {[%emt 0:00:37]} 14. Bb5 {[%emt 0:00:41]} a6 {[%emt 0:00:24]} 15. Bxd7 {[%emt 0:00:37]} Bxd7 {[%emt 0:00:24]} 16. Nge2 {[%emt 0:01:13]} Rac8 {[%emt 0:02:10]} 17. Ba5 {[%emt 0:01:01]} Rc5 {[%emt 0:01:40]} 18. b4 {[%emt 0:02:36]} Rcc8 {[%emt 0:00:28]} 19. Rhd1 {[%emt 0:00:42]} Bb5 {[%emt 0:00:44]} 20. Nxb5 {[%emt 0:00:54]} axb5 {[%emt 0:00:24]} 21. Rb6 {[%emt 0:00:27]} Rb8 {[%emt 0:01:06]} 22. Rdd6 {[%emt 0:00:25]} Ng8 {[%emt 0:01:04]} 23. Rxb5 {[%emt 0:00:58]} Ne7 {[%emt 0:00:50]} 24. Rd7 {[%emt 0:00:56]} Nc6 {[%emt 0:01:41]} 25. Rbxb7 {[%emt 0:01:07]} Ra8 {[%emt 0:00:41]} 26. Rxf7+ {[%emt 0:00:22]} Kg8 {[%emt 0:00:16]} 27. Rxh7 {[%emt 0:00:28]} Bg5 {[%emt 0:00:58]} 28. Rhg7+ {[%emt 0:01:30]} 1-0